Cogmind - Beta 14 @@@ ROGUE MODE // 2025.01.17 @ 22:18:24 Player: Egor Result: Destroyed by as-69205 with Assembled F-torch Performance ------------- Evolutions (1) 500 Regions Visited (3) 600 Robots Destroyed (29) 145 Value Destroyed (885) 885 Prototype IDs (1) 20 Alien Tech Used (0) 0 Bonus (0) 0 TOTAL SCORE: 2150 Bonus ------- None Cogmind --------- Core Integrity 0/400 Matter 300/300 Energy 1/100 System Corruption 0% Temperature Cool (20) Movement Rolling (80) Location -9/Mines Parts ------- > --- POWER (1) -------- (None) > --- PROPULSION (2) --- Wheel Flight Unit > --- UTILITY (3) ------ Power Shielding System Shield Field Recycling Unit > --- WEAPON (3) ------- (None) > --- INVENTORY (5) ---- Signal Interpreter Peak State ------------ > --- POWER ------------ Ion Engine > --- PROPULSION ------- Aluminum Leg Aluminum Leg > --- UTILITY ---------- Small Storage Unit Seismic Detector Power Shielding > --- WEAPON ----------- Particle Gun Improved Medium Laser Light EM Pulse Cannon > --- INVENTORY -------- Flight Unit Signal Interpreter System Shield Improved Medium Laser Light EM Pulse Cannon Light EM Pulse Cannon Grenade Launcher Datajack [Rating: 14] Favorites ----------- Power Ion Engine Engine Ion Engine Propulsion Aluminum Leg Leg Aluminum Leg Wheel Wheel Flight Unit Flight Unit Utility Small Storage Unit Device Seismic Detector Storage Small Storage Unit Hackware System Shield Protection Power Shielding Weapon Improved Medium Laser Energy Gun Improved Medium Laser Energy Cannon Light EM Pulse Cannon Ballistic Gun Assault Rifle Launcher Grenade Launcher Special Weapon Welding Torch Build | -11 -10 -9 -9 ------- Run | Yrd Mat Mat Min Slots Evolved 2 | . . 2 . Power . | . . . . Propulsion . | . . . . Utility 1 | . . 1 . Weapon 1 | . . 1 . Parts Attached 41 | 6 14 16 5 Power 3 | 1 1 1 . Engine 3 | 1 1 1 . Core . | . . . . Reactor . | . . . . Propulsion 14 | 2 6 5 1 Treads . | . . . . Leg 5 | . 2 3 . Wheel 6 | 2 2 2 . Hover . | . . . . Flight 3 | . 2 . 1 Utility 7 | 1 3 1 2 Device 2 | . 1 . 1 Storage 3 | 1 2 . . Processor . | . . . . Hackware 1 | . . . 1 Protection 1 | . . 1 . Artifact . | . . . . Weapon 17 | 2 4 9 2 Energy Gun 8 | 1 2 4 1 Energy Cannon 3 | . . 2 1 Ballistic Gun 3 | 1 2 . . Ballistic Cannon . | . . . . Launcher 2 | . . 2 . Special Weapon 1 | . . 1 . Impact Weapon . | . . . . Slashing Weapon . | . . . . Piercing Weapon . | . . . . Special Melee Weapon . | . . . . Unidentified Prototypes 1 | . 1 . . Parts Lost 22 | . 4 16 2 Power 3 | . 1 2 . Propulsion 5 | . 1 4 . Utility 2 | . . 2 . Weapon 12 | . 2 8 2 Highest Loss Streak 5 | . 4 5 2 To Critical Strikes . | . . . . Average Slot Usage (%) 84 | . 85 86 54 Engine 10 | . 13 10 . Leg 13 | . 16 14 . Wheel 4 | . 7 . 11 Flight 1 | . 2 . 3 Device 7 | . 3 10 5 Storage 11 | . 14 10 . Protection 6 | . . 10 11 Energy Gun 20 | . 18 25 3 Energy Cannon 3 | . . 4 9 Ballistic Gun 2 | . 7 . . Peak Build Rating 14 | 6 10 14 11 Average Rating 10 | 5 8 11 8 On Entrance 4 | . 6 10 2 Naked Turns . | . . . . Heaviest Build 54 | 13 54 22 14 Greatest Support 26 | 26 26 20 10 Greatest Overweight (x) 4 | . 4 4 4 Average Overweight (x) . | . . . . Largest Inventory Capacity 20 | 8 20 8 5 Average Capacity 7 | 7 8 7 5 Most Carried 8 | . 8 8 4 Average Carried 6 | . 7 7 1 Final Capacity 8 | 8 8 5 5 Final Carried 8 | . 8 4 1 Class Distribution -------------------- 34% | Mutant 29% | Tank 20% | Scavenger-Mutant 13% | Scavenger-Tank Dominant Class ---------------- Scavenger-Mutant | -10/Materials Tank | -9/Materials Mutant | -9/Mines Resources | -11 -10 -9 -9 ----------- Run | Yrd Mat Mat Min Matter Collected 662 | 199 290 108 65 Remotely . | . . . . Salvage Created 948 | . 491 457 . Parts 61 | . 29 32 . Haulers Intercepted . | . . . . Recyclers Shooed . | . . . . Parts Field Recycled . | . . . . Retrieved Matter . | . . . . Parts Self-Destructed . | . . . . Prevented . | . . . . Kills | -11 -10 -9 -9 ------- Run | Yrd Mat Mat Min Combat Hostiles Destroyed 26 | . 13 13 . Guns 23 | . 13 10 . Cannons 2 | . . 2 . AOE 1 | . . 1 . Classes Destroyed 4 | . 3 1 . Worker 1 | . 1 . . Watcher 2 | . . 2 . Swarmer 6 | . 3 3 . Grunt 20 | . 10 10 . Best Kill Streak 4 | . 4 3 . Combat Bots Only 4 | . 4 3 . Max Kills in Single Turn 2 | . 2 1 . Gunslinging 1 | . 1 . . Exploded 1 | . . 1 . Melee . | . . . . Uniques/NPCs Destroyed . | . . . . Combat | -11 -10 -9 -9 -------- Run | Yrd Mat Mat Min Hostile Shots Fired 250 | . 73 152 25 Missed 67 | . 15 48 4 Damage Taken 2414 | . 719 1415 280 Core 560 | . 157 314 89 Absorbed by Shields . | . . . . Redirected to Shielding 34 | . . 34 . Core Remaining (%) 68 | 100 37 . . Volleys Fired 78 | . 45 31 2 Largest 3 | . 2 3 2 Hottest 177 | . 96 177 96 Shots Fired 155 | . 79 73 3 Gun 145 | . 79 65 1 Cannon 6 | . . 4 2 Launcher 4 | . . 4 . Special . | . . . . Kinetic 37 | . 37 . . Thermal 106 | . 40 65 1 Explosive 4 | . . 4 . Electromagnetic 8 | . 2 4 2 Robot Hit Streak 9 | . 9 8 1 Robot Miss Streak 5 | . 5 4 2 Penetration Max . | . . . . Secondary Targets 5 | . 2 3 . Max Gunslinging Chain 1 | . 1 1 . Shots Hit Robots 84 | . 44 39 1 Core Hits 47 | . 24 21 2 Critical Kills 1 | . 1 . . Critical Parts Destroyed . | . . . . Critical Strikes 6 | . 4 2 . Burn 5 | . 3 2 . Destroy 1 | . 1 . . Melee Attacks . | . . . . Impact . | . . . . Slashing . | . . . . Piercing . | . . . . Sneak Attacks . | . . . . Combat Hostiles . | . . . . Follow-up Attacks . | . . . . Damage Inflicted 1411 | . 618 727 66 Guns 1160 | . 612 548 . Cannons 109 | . . 72 37 Explosions 98 | . . 98 . Melee . | . . . . Ramming 44 | . 6 9 29 Kinetic 265 | . 265 . . Thermal 885 | . 337 548 . Explosive 98 | . . 98 . Electromagnetic 119 | . 10 72 37 Impact . | . . . . Slashing . | . . . . Piercing . | . . . . Highest Corruption 1 | . 1 . . Average Corruption 1 | . 1 . . Corruption Purged . | . . . . Corruption Blocked . | . . . . Effects 10 | . 10 . . Message Errors 4 | . 4 . . Matter Fused 1 | . 1 . . Heat Flow Errors 1 | . 1 . . Parts Rejected 1 | . 1 . . Data Loss (minor) 1 | . 1 . . Data Loss (major) 1 | . 1 . . Misfires 1 | . 1 . . Overload Shots . | . . . . Overflow Damage . | . . . . Projectiles . | . . . . Explosions . | . . . . Melee . | . . . . Knockbacks . | . . . . Impact . | . . . . Kinetic . | . . . . Secondary . | . . . . Self-Inflicted Damage 13 | . . . 13 Shots . | . . . . Rammed 12 | . 3 . 9 Targets Rammed 15 | . 4 2 9 Kicked 3 | . 1 2 . Crushed . | . . . . Highest Temperature 367 | . 264 367 30 Average Temperature 100 | . 87 113 15 Received Heat Transfer 1214 | . 381 669 164 Effects 1 | . . 1 . Energy Bleed 1 | . . 1 . Siege Activations . | . . . . Robots Corrupted . | . . . . Combat Hostiles . | . . . . Parts Fried . | . . . . Impact Corruptions . | . . . . Robots Melted . | . . . . Combat Hostiles . | . . . . Parts Melted 4 | . 2 2 . Heat Transferred 2338 | . 964 1374 . Parts Sabotaged . | . . . . Parts Stolen . | . . . . Parts Stripped . | . . . . Power Chain Reactions . | . . . . Alert | -11 -10 -9 -9 ------- Run | Yrd Mat Mat Min Peak Influence 412 | . 412 382 19 Initial 122 | . . 122 19 Average 164 | . 226 150 17 Maximum Alert Level 2 | . 2 1 . Low Security (%) 67 | 100 36 84 100 Level 1 29 | . 57 15 . Level 2 2 | . 6 . . Level 3 . | . . . . Level 4 . | . . . . Level 5 . | . . . . High Security . | . . . . Max Security . | . . . . Squads Dispatched 5 | . 3 2 . Investigation 3 | . 1 2 . Extermination . | . . . . Reinforcement 2 | . 2 . . Assault . | . . . . Garrison . | . . . . Intercept . | . . . . Searches Triggered . | . . . . Construction Impeded . | . . . . Haulers Reinforced . | . . . . Active Scanning Responses . | . . . . Cargo Convoy Interrupts . | . . . . Stealth | -11 -10 -9 -9 --------- Run | Yrd Mat Mat Min Distress Signals 9 | . 2 7 . Communications Jammed . | . . . . Distress Signals . | . . . . Times Spotted 65 | . 22 36 7 Peak Tracking Total 9 | . 7 9 6 Tactical Retreats 8 | . 1 6 1 Traps | -11 -10 -9 -9 ------- Run | Yrd Mat Mat Min Traps Triggered 3 | . 1 2 . Indirectly . | . . . . Trap Hack Attempts . | . . . . Triggered . | . . . . Disarmed . | . . . . Reprogrammed . | . . . . Reused . | . . . . Traps Extracted . | . . . . Installed . | . . . . Triggered . | . . . . Machines | -11 -10 -9 -9 ---------- Run | Yrd Mat Mat Min Machines Disabled 6 | . 4 2 . Max in Single Turn 1 | . 1 1 . Machines Repaired . | . . . . Machines Dismantled . | . . . . Machines Sabotaged . | . . . . Overloaded Fab Kills . | . . . . Hacking | -11 -10 -9 -9 --------- Run | Yrd Mat Mat Min Machines Accessed 5 | . 4 1 . Terminals 4 | . 3 1 . Fabricators . | . . . . Repair Stations . | . . . . Recycling Units 1 | . 1 . . Scanalyzers . | . . . . Garrison Access . | . . . . Total Hacks 14 | . 12 2 . Successful 8 | . 6 2 . Failed 6 | . 6 . . Catastrophic . | . . . . Database Lockouts . | . . . . Manual . | . . . . Terminals 13 | . 11 2 . Fabricators . | . . . . Repair Stations . | . . . . Recycling Units 1 | . 1 . . Scanalyzers . | . . . . Garrison Access . | . . . . Terminal Hacks 7 | . 5 2 . Emergency Access Points 1 | . 1 . . Locate Traps 1 | . 1 . . Dispatch Records 2 | . 1 1 . Maintenance Status 2 | . 1 1 . Reinforcement Status 1 | . 1 . . Fabricator Hacks . | . . . . Repair Station Hacks . | . . . . Recycling Unit Hacks 1 | . 1 . . Process 1 | . 1 . . Scanalyzer . | . . . . Garrison Access Hacks . | . . . . Unauthorized Hacks . | . . . . Terminals . | . . . . Fabricators . | . . . . Repair Stations . | . . . . Recycling Units . | . . . . Scanalyzers . | . . . . Garrison Access . | . . . . Data Cores Recovered . | . . . . Used . | . . . . Hacking Detections 3 | . 3 . . Full Trace Events 2 | . 2 . . Feedback Events . | . . . . Feedback Blocked . | . . . . Robot Schematics Acquired . | . . . . Robots Built . | . . . . Authchips . | . . . . Time . | . . . . Total Robot Build Rating . | . . . . Part Schematics Acquired . | . . . . Parts Built . | . . . . Authchips . | . . . . Time . | . . . . Total Part Build Rating . | . . . . Parts Repaired . | . . . . Time . | . . . . Parts Recycled . | . . . . Recycled Matter 201 | . 201 . . Retrieved Matter . | . . . . Retrieved Components . | . . . . Parts Scanalyzed . | . . . . Part Schematics Acquired . | . . . . Parts Damaged . | . . . . Bothacking | -11 -10 -9 -9 ------------ Run | Yrd Mat Mat Min Used RIF Installer . | . . . . Robots Hacked . | . . . . Non-combat . | . . . . Combat . | . . . . Robot Hacks Applied . | . . . . Relay Couplers Released . | . . . . Fabnet Peak Effective % . | . . . . Robots Rewired . | . . . . Allies Hacked . | . . . . Hacks Repelled . | . . . . Allies | -11 -10 -9 -9 -------- Run | Yrd Mat Mat Min Total Allies . | . . . . Largest Group . | . . . . Highest-Rated Group . | . . . . Highest-Rated Ally . | . . . . Total Orders . | . . . . Ally Attacks . | . . . . Total Damage . | . . . . Kills . | . . . . Allies Corrupted . | . . . . Allies Melted . | . . . . Intel | -11 -10 -9 -9 ------- Run | Yrd Mat Mat Min Robot Analysis Total . | . . . . Derelict Logs Recovered . | . . . . Drone Launches . | . . . . Drone Recoveries . | . . . . Exploration | -11 -10 -9 -9 ------------- Run | Yrd Mat Mat Min Turns Passed 2890 | 99 1088 1492 211 Spaces Moved 1799 | 101 770 736 192 Core 27 | 2 9 1 15 Treads . | . . . . Legs 1203 | . 494 709 . Wheels 500 | 99 198 26 177 Hover . | . . . . Flight 69 | . 69 . . Fastest Speed 50 | 50 90 80 80 Average Speed 141 | 89 118 185 96 Slowest Speed 260 | 100 260 260 250 Overloaded Moves . | . . . . Propulsion Burnouts . | . . . . Robots Hopped . | . . . . Cave-ins Triggered . | . . . . Exploration Rate (%) 37 | 4 77 40 27 Regions Visited 3 Branch Regions 1 Pre-discovered Areas 1 | . . . 1 Known Exits Taken . | . . . . Unknown Exits Taken 3 | 1 1 1 . Scrap Searched 1 | . . . 1 Spaces Dug . | . . . . Terrain Destroyed 21 | . . 21 . Melee . | . . . . Projectile . | . . . . AOE 21 | . . 21 . Terrain Rammed . | . . . . Walls Destroyed . | . . . . Machines Disabled . | . . . . Actions | -11 -10 -9 -9 --------- Run | Yrd Mat Mat Min Total 1985 | 106 869 796 214 Wait 17 | . 10 1 6 Move 1796 | 100 769 735 192 Hop . | . . . . Pick Up 16 | . 13 3 . Fast Attach 29 | 6 10 11 2 Attach 9 | . 2 4 3 Detach 6 | . 5 1 . Swap 3 | . 2 1 . Drop 16 | . 9 7 . Fire 78 | . 45 31 2 Melee . | . . . . Ram 12 | . 3 . 9 Kick 3 | . 1 2 . Crush . | . . . . Escape Stasis . | . . . . Rewire . | . . . . Trap . | . . . . Miscellaneous . | . . . . Route ------- -11/Scrapyard -10/Materials (discovered 3 exits: *Mat x2 / [*Min]) -9/Materials -9/Mines (discovered 1 exit: [*Mat]) History --------- Turn | Location | Event 27 | -11/Scrapyard | Discovered new exit (range 16) 100 | -11/Scrapyard | Entered Materials 305 | -10/Materials | Build established: Mutant 503 | -10/Materials | Lost 4 parts (1p1n2w) 545 | -10/Materials | Discovered new exit (range 16) 579 | -10/Materials | Core integrity fell below 50% 903 | -10/Materials | Build established: Scavenger-Mutant 991 | -10/Materials | Discovered new exit (range 14) 1175 | -10/Materials | Discovered new exit (range 4) 1188 | -10/Materials | Entered another Materials area 1188 | -9/Materials | Evolved 2 slots: Utility x1, Weapon x1 1784 | -9/Materials | Build established: Scavenger-Tank 2201 | -9/Materials | Build established: Tank 2468 | -9/Materials | Discovered new exit (range 10) 2596 | -9/Materials | Lost 4 parts (1n3w) 2608 | -9/Materials | Core integrity fell below 50% 2680 | -9/Materials | Entered Mines 2681 | -9/Mines | Learned location of Storage (-8) 2699 | -9/Mines | Lost 5 parts (1n1u3w) 2705 | -9/Mines | Discovered new exit (range 9) 2782 | -9/Mines | Assembled infested the area 2852 | -9/Mines | Core integrity fell below 20% 2859 | -9/Mines | Build established: Mutant 2891 | -9/Mines | Destroyed by as-69205 with Assembled F-torch Last Messages --------------- dispatching Demolisher response squad. 02793_ Searching scrap... 02793_ Found Hcp. Matter Pod. 02793_ Found Sml. Laser. 02793_ Found Field Recycling Unit. 02793_ Found 67 Matter. 02794_ Acquired Sml. Laser. 02796_ Acquired 55 matter. 02797_ Acquired Field Recycling Unit. 02816_ Acquired 10 matter. 02852_ Slammed into as-68546. 02856_ Destabilizing: System interference. 02856_ Sml. Laser temporarily disabled. 02857_ Slammed into as-68546. 02863_ Sml. Laser destroyed. 02885_ Lgt. EM Pulse Cannon destroyed. 02890_ Slammed into as-91662. 02890_ Destabilizing: Core damaged (-12). 02891_ G-34 Mercenary heat short circuits Aluminum Leg. Map ----- +----------------------------------------------------+ | ?????????????????????????????????????????????????? | | ?????????????????????????????????????????????????? | | ?????????????????????????????????????????????????? | | ?????????????????????????????????????????????????? | | ?????????????????????????????????????????????????? | | ?????????????????????????????????????????????????? | | ?????????????????????????????????????????????????? | | ?????????????????????????????????????????????????? | | ??#??????????????????????????????????????????????? | | ??# ?????????????????????????????????????????????? | | ??? ####????????????????????????????????????????? | | ????? #????????????????????????????????????????? | | ??????# #????????????????????????????????????????? | | ??????# #####????????????????????????????????????? | | ??????#%%%% #????????????????????????????????????? | | ??????####% ########?????????????????????????????? | | ?????????# #???????????????????????????? | | ?????????# ########?????????????????????????????? | | ?????????# #????????????????????????????????????? | | ?????????# ############?????????????????????????? | | ?????????# % ! ##????????????????????????? | | ?????????############ #????????????????????????? | | ????????????????????# ##???????????????????????? | | ????????????????????# ####???????????????#####? | | ????????????????????## a ##?????????????## ## | | ?????????????????????###%@ #????????????## # | | ???????????????????????##a #????????????# # | | ????????????????????????## ##????????????## # | | ?????????????????????????##g#??????????????## # | | ??????????????????????????#g#### #???????# ## | | ??????????????????????????# #???????## ##? | | ??????????????????????????# ### ###???????# ##?? | | ??????????????????????????# #??????????????## #??? | | ??????????????????????????# #???????????##### #??? | | ??????????????????????????# #???????????# #??? | | ?????????????????????????## ####????????# #####??? | | ??????????????""" ####### #????????# #??????? | | ??????????????""" """ #????????# #??????? | | ??????????????""" """ #????????# #??????? | | ????????????? ######## """ ########## #??????? | | ????????????? ???????????# #??????? | | ?????????????????????????# ### ########??????? | | ?????????????????????????## ####?# #?????????????? | | ??????????????????????????# #????# #?????????????? | | ??????????????????????????# #????# #?????????????? | | ??????????????????????????# #???## #?????????????? | | ??????????????????????????# #??## ##????????????? | | ??????????????????????????# #### ##???????????? | | ??????????????????????????# < ###### #????? | | ??????????????????????????### ### ????? | +----------------------------------------------------+ Best States ------------- Heat Dissipation 28 Energy Generation 10 Energy Capacity 250 Matter Stores 300 Matter Capacity 300 Sight Range 16 Terrain Scan Density 10 Power Shielding 33 Evasion (%) 55 Defensive Hacking 10 Item Schematics ----------------- None Robot Schematics ------------------ None Fabricated ------------ Nothing Alien Tech Used ----------------- None Achievements -------------- None Challenges ------------ None Game ------ Seed ParticleAmuletDoomcannon Manual? 0 Play Time 00:45:06 Cumulative 4.1 hours Start 2025.01.17 @ 21:23:39 End 2025.01.17 @ 22:18:24 Sessions 1 Manual Loads 0 Difficulty Rogue Special Mode None Game No. 10 Rogue 10 Adventurer 0 Explorer 0 Win Type - Total 0 Types 0/0/0/0/0/0/0/0/0 Lore% 1 Gallery% 5 Achievement% 4 Wizard Run 0 Options --------- Layout 1 ASCII 0 Keyboard 1 Movement Vi Keybinds 0 Fullscreen 2 Font 24/Smallcaps Map View 25x17 Zoom Use 84% Tactical HUD 1 Map Filters NONE Filters NONE Steam 1 RUN: c54c2ed9-2a11-46ed-8027-417798af5719